bitfinex/quotes_ETHUSD_20240610
["timestamp","ask_amount","ask_price","bid_price","bid_amount"]
[1718054443342,3.310956,3670.6,3670.5,0.0885106]
[1718054443527,3.310956,3670.6,3670.1,0.56736122]
[1718054443728,2.72436,3670.6,3670.5,0.0885106]
[1718054443962,2.72436,3670.6,3670.1,0.56736122]
[1718054444165,2.72436,3670.6,3670.5,0.0885106]
[1718054444459,2.72436,3670.6,3670.2,0.56736122]
[1718054444611,2.72436,3670.6,3670.5,0.0885106]
[1718054444817,3.310956,3670.6,3670.2,0.56736122]
[1718054445036,3.310956,3670.6,3670.5,0.0885106]
[1718054445243,3.310956,3670.6,3670.2,0.56736122]
[1718054445433,3.310956,3670.6,3670.5,0.0885106]
[1718054445636,3.310956,3670.6,3670.2,0.56736122]
[1718054445831,2.72436,3670.6,3670.5,0.0885106]
[1718054446023,2.72436,3670.6,3670.2,0.56736122]
[1718054446218,2.72436,3670.6,3670.5,0.08852286]
[1718054446424,2.72436,3670.6,3670.2,0.56736122]
[1718054446624,2.72436,3670.6,3670.5,0.08852286]
[1718054447322,2.72436,3670.6,3670.2,0.56736122]
[1718054447523,2.72436,3670.6,3670.3,0.08852286]
[1718054449822,2.72436,3670.6,3670.1,0.56736122]
[1718054450243,2.72436,3670.6,3670.2,0.08852286]
[1718054450548,2.72436,3670.6,3670.2,0.65588408]
[1718054453117,2.72436,3670.6,3670.3,0.56736122]
[1718054453323,3.310956,3670.6,3670.3,0.56736122]
[1718054453519,3.310956,3670.6,3670.2,0.56736122]
[1718054453520,2.72449,3670.4,3670.2,0.56736122]
[1718054453757,2.72449,3670.4,3670.1,0.56736122]
[1718054454349,3.017,3670.5,3669.8,1.13433718]
[1718054454350,2.72467,3670.2,3670.0,0.56736122]
[1718054454937,2.72467,3670.2,3669.9,0.56736122]
[1718054455526,2.72467,3670.2,3670.0,0.08852286]
[1718054455727,2.296,3670.5,3669.8,0.56736122]
[1718054455728,2.7248,3670.0,3669.8,0.56736122]
[1718054456022,2.7248,3670.0,3669.9,0.0886699]
[1718054456670,2.7248,3670.0,3669.8,0.56736122]
[1718054456826,2.7248,3670.0,3669.9,0.0886699]
[1718054457226,2.7248,3670.0,3669.7,0.56736122]
[1718054457502,2.7248,3670.0,3669.9,0.0886699]
[1718054458063,2.7248,3670.0,3669.7,0.56736122]
[1718054458264,2.7248,3670.0,3669.9,0.0886699]
[1718054458632,2.7248,3670.0,3669.7,0.56736122]
[1718054458847,2.7248,3670.0,3669.9,0.0886699]
[1718054459046,2.7248,3670.0,3669.7,0.56736122]
[1718054459244,2.7248,3670.0,3669.9,0.0886699]
[1718054459450,2.7248,3670.0,3669.7,0.56736122]
[1718054459636,2.7248,3670.0,3669.9,0.0886699]
[1718054460357,2.7248,3670.0,3669.7,0.56736122]
[1718054460659,2.7248,3670.0,3669.9,0.0886699]
[1718054461477,2.7248,3670.0,3669.6,0.56736122]
[1718054461635,2.7248,3670.0,3669.9,0.0886699]
[1718054461825,2.7248,3670.0,3669.6,0.56736122]
[1718054462031,2.7248,3670.0,3669.9,0.0886699]
[1718054462850,2.7248,3670.0,3669.6,0.56736122]
[1718054463048,2.7248,3670.0,3669.9,0.0886699]
[1718054463265,2.7248,3670.0,3669.6,0.56736122]
[1718054463464,2.99728,3670.0,3669.9,0.0886699]
[1718054463629,3.71828,3670.0,3669.5,0.56736122]
[1718054463830,3.71828,3670.0,3669.9,0.08889661]
[1718054464261,2.72508,3669.7,3669.4,0.56736122]
[1718054464469,2.72508,3669.7,3669.2,0.56736122]
[1718054464633,2.72508,3669.7,3669.1,0.56736122]
[1718054464634,2.72517,3669.5,3669.1,0.56736122]
[1718054464969,2.72517,3669.5,3668.9,3.04296122]
[1718054465191,2.72517,3669.5,3668.9,2.4756]
[1718054468548,2.72517,3669.5,3668.8,2.72565]
[1718054468753,3.302477,3669.5,3668.8,2.72565]
[1718054469180,2.72533,3669.3,3668.8,2.72565]
[1718054469406,5.01163,3669.3,3668.8,2.72565]
[1718054470563,5.01163,3669.3,3668.9,0.08952794]
[1718054471986,4.98363,3669.3,3668.9,0.08952794]
[1718054478495,2.69733,3669.3,3668.9,0.08952794]
[1718054478821,2.69733,3669.3,3668.6,3.0]
[1718054479103,2.69733,3669.3,3669.0,0.08952794]
[1718054479257,2.69733,3669.3,3668.6,3.0]
[1718054479457,2.69733,3669.3,3669.1,0.08952794]
[1718054479662,3.41833,3669.3,3668.6,3.0]
[1718054480185,3.41833,3669.3,3668.7,0.09018385]
[1718054494204,2.69733,3669.3,3668.7,0.09018385]
[1718054497224,2.69733,3669.3,3668.7,2.47758385]
[1718054497433,2.69733,3669.3,3668.8,0.87707051]
[1718054497580,2.69733,3669.3,3668.7,2.47758385]
[1718054497779,2.69733,3669.3,3668.9,0.0841668]
[1718054498011,2.69733,3669.3,3668.7,2.3874]
[1718054498311,2.69733,3669.3,3669.0,0.0841668]
[1718054498526,2.69733,3669.3,3668.7,2.3874]
[1718054498675,2.69733,3669.3,3669.1,0.0841668]
[1718054498878,2.69733,3669.3,3669.2,0.0841668]
[1718054499110,2.69733,3669.3,3668.7,2.3874]
[1718054499418,2.69733,3669.3,3668.8,0.0841668]
[1718054499776,2.69733,3669.3,3668.7,2.3874]
[1718054499978,2.69733,3669.3,3668.9,0.0841668]
[1718054500187,2.69733,3669.3,3668.7,4.15664372]
[1718054500390,2.69733,3669.3,3669.0,0.0841668]
[1718054500592,2.69733,3669.3,3668.7,2.3874]
[1718054500792,2.69733,3669.3,3669.1,0.0841668]
[1718054501017,2.69733,3669.3,3668.7,2.3874]
[1718054501226,2.69733,3669.3,3669.2,0.0841668]
[1718054501399,2.69733,3669.3,3668.7,2.95476122]
[1718054501609,2.69733,3669.3,3669.2,0.08126083]
[1718054501776,2.69733,3669.3,3668.7,2.95476122]
[1718054501981,2.69733,3669.3,3669.2,0.08126083]
[1718054502181,2.69733,3669.3,3668.7,2.95476122]
[1718054502409,2.69733,3669.3,3669.2,0.08126083]
[1718054502623,2.69733,3669.3,3668.7,2.95476122]
[1718054502884,2.69733,3669.3,3669.2,0.08126083]
[1718054503397,2.69733,3669.3,3668.7,2.95476122]
[1718054503587,2.69733,3669.3,3669.2,0.08126083]
[1718054503787,2.69733,3669.3,3668.7,2.95476122]
[1718054504010,2.69733,3669.3,3669.2,0.08126083]
[1718054504184,2.69733,3669.3,3668.7,2.95476122]
[1718054504386,2.69733,3669.3,3669.2,0.08126083]
[1718054504586,2.69733,3669.3,3668.7,2.95476122]
[1718054505320,2.69733,3669.3,3668.8,0.08126083]
[1718054505523,2.69733,3669.3,3668.7,2.95476122]
[1718054505822,2.69733,3669.3,3668.8,0.08124243]
[1718054506118,2.69733,3669.3,3668.7,2.95476122]
[1718054506319,2.69733,3669.3,3668.8,0.08120565]
[1718054506624,2.69733,3669.3,3668.7,2.95476122]
[1718054506811,2.69733,3669.3,3668.9,0.08120565]
[1718054507013,2.72546,3669.2,3668.7,2.95476122]
[1718054507215,2.72546,3669.2,3669.0,0.08120565]
[1718054507419,2.72546,3669.2,3668.7,2.95476122]
[1718054507590,2.72546,3669.2,3669.1,0.08120565]
[1718054507790,2.72546,3669.2,3668.8,0.56736122]
[1718054507990,2.72546,3669.2,3669.1,0.08120565]
[1718054508191,2.72546,3669.2,3668.8,0.56736122]
[1718054508849,2.72546,3669.2,3668.9,0.08120565]
[1718054509635,2.72546,3669.2,3668.9,0.64856687]
[1718054510426,2.72546,3669.2,3669.0,0.56736122]
[1718054510800,2.72546,3669.2,3669.1,0.08120565]
[1718054513247,5.78306,3669.2,3669.1,0.08120565]
[1718054513527,6.361366,3669.2,3668.9,0.56736122]
[1718054513690,6.361366,3669.2,3669.1,0.08120565]
[1718054514228,6.361366,3669.2,3668.9,0.56736122]
[1718054514428,6.361366,3669.2,3669.1,0.08120565]
[1718054514594,6.361366,3669.2,3668.9,0.56736122]
[1718054514796,6.361366,3669.2,3669.1,0.08120565]
[1718054515104,6.361366,3669.2,3668.9,0.56736122]
[1718054515311,6.361366,3669.2,3669.1,0.08120565]
[1718054515489,6.361366,3669.2,3668.9,0.56736122]
[1718054516047,6.361366,3669.2,3669.0,0.08120565]
[1718054516252,5.78306,3669.2,3669.0,0.08120565]
[1718054516908,2.7256,3669.0,3668.8,0.56736122]
[1718054522943,2.7256,3669.0,3668.7,0.56736122]
[1718054528734,2.72568,3668.9,3668.7,0.56736122]
[1718054530426,2.72568,3668.9,3668.8,0.08132828]
[1718054530633,2.72568,3668.9,3668.7,0.56736122]
[1718054531006,2.72568,3668.9,3668.8,0.08132828]
[1718054531819,2.72568,3668.9,3668.7,0.56736122]
[1718054532018,2.72568,3668.9,3668.8,0.08132828]
[1718054532248,2.72568,3668.9,3668.7,0.56736122]
[1718054532564,2.72568,3668.9,3668.8,0.08132828]
[1718054532905,2.72568,3668.9,3668.6,0.56736122]
[1718054533104,2.72568,3668.9,3668.8,0.08132828]
[1718054533323,2.72568,3668.9,3668.6,0.56736122]
[1718054533568,2.72568,3668.9,3668.8,0.08132828]
[1718054534215,2.72568,3668.9,3668.6,0.56736122]
[1718054534417,2.72568,3668.9,3668.8,0.08132828]
[1718054534721,2.72568,3668.9,3668.6,0.56736122]
[1718054534923,3.0555,3668.7,3668.2,0.56736122]
[1718054535646,2.72583,3668.6,3668.2,0.56736122]
[1718054539540,2.72583,3668.6,3668.1,0.56736122]
[1718054540051,2.72583,3668.6,3668.0,0.56736122]
[1718054545543,2.72583,3668.6,3668.1,0.08171461]
[1718054547564,2.67583,3668.6,3668.1,0.08171461]
[1718054557544,3.0555,3668.7,3668.1,2.80784461]
[1718054557758,0.721,3668.6,3668.1,2.80784461]
[1718054560032,0.721,3668.6,3668.1,3.37520583]
[1718054560442,0.721,3668.6,3668.1,2.80784461]
[1718054561272,0.721,3668.6,3668.1,3.37520583]
[1718054565341,0.721,3668.6,3668.3,2.72604]
[1718054565758,0.721,3668.6,3668.4,0.08209484]
[1718054572135,2.3345,3668.7,3668.4,0.08209484]
[1718054575395,2.33292173,3668.7,3668.4,0.08209484]
[1718054575905,3.44669,3668.8,3668.4,0.08209484]
[1718054581022,3.44669,3668.8,3668.4,0.64945606]
[1718054581479,3.44669,3668.8,3668.4,0.08209484]
[1718054582481,3.44669,3668.8,3668.4,0.64945606]
[1718054582677,3.44669,3668.8,3668.4,0.08209484]
[1718054586087,0.721,3668.8,3668.4,0.08209484]
[1718054586292,2.72585,3668.6,3668.4,0.08209484]
[1718054590024,5.82527,3668.9,3668.4,0.08209484]
[1718054590319,6.407797,3668.9,3668.4,0.08209484]
[1718054590538,2.4386,3669.4,3668.4,0.08209484]
[1718054590741,3.72503,3669.7,3668.4,0.08209484]
[1718054590742,2.72545,3669.2,3668.5,2.4208]
[1718054591021,2.72545,3669.2,3668.6,0.56736122]
[1718054591589,2.72545,3669.2,3668.7,0.07913885]
[1718054593339,2.72545,3669.2,3668.8,2.3373]
[1718054593638,2.72545,3669.2,3668.8,2.90826301]
[1718054593843,2.72545,3669.2,3668.9,0.07901634]
[1718054594045,0.721,3669.4,3668.9,0.07901634]
[1718054594747,1.0,3669.7,3668.9,0.07901634]
[1718054594748,3.44632,3669.3,3668.9,0.07901634]
[1718054597625,2.72532,3669.3,3668.9,0.3773841]
[1718054600048,2.72532,3669.3,3669.0,2.3358]
[1718054600436,2.72532,3669.3,3669.1,0.07884484]
[1718054615768,2.68432,3669.3,3669.1,0.07884484]
[1718054659939,2.72516,3669.5,3669.1,0.07884484]
[1718054660446,3.44602,3669.7,3669.2,2.3105]
[1718054660884,3.44602,3669.7,3669.3,0.07546224]
[1718054665678,2.7252,3669.5,3669.3,0.07546224]
[1718054700539,0.721,3669.4,3669.3,0.07546224]
[1718054700948,3.2082,3669.4,3668.7,0.56736122]
[1718054701246,3.2082,3669.4,3668.3,9.7366]
[1718054701247,0.721,3668.9,3668.8,0.07087183]
[1718054701447,0.721,3668.9,3668.4,0.56736122]
[1718054701633,0.721,3668.9,3668.5,0.07087183]
[1718054701849,0.721,3668.9,3668.4,0.56736122]
[1718054702145,2.72538,3669.3,3668.6,2.2966]
[1718054702451,2.72538,3669.3,3668.7,0.07106142]
[1718054703010,2.72538,3669.3,3668.7,0.63842264]
[1718054703210,3.44638,3669.3,3668.7,0.63842264]
[1718054703432,3.44638,3669.3,3668.8,0.79723273]
[1718054703646,3.44638,3669.3,3668.9,0.07112259]
[1718054704218,2.72538,3669.3,3668.9,0.07112259]
[1718054705744,2.72547,3669.1,3668.9,0.07112259]
[1718054706460,2.72547,3669.1,3668.6,2.2966]
[1718054706665,2.72547,3669.1,3668.7,0.51656624]
[1718054706868,2.72457,3669.1,3668.7,0.51656624]
[1718054707063,2.72562,3668.9,3668.7,0.51656624]
[1718054707481,2.72562,3668.9,3668.7,0.07111966]
[1718054709351,2.72579,3668.7,3668.4,0.56736122]
[1718054709555,2.72579,3668.7,3668.3,10.37836122]
[1718054709787,3.44658,3669.0,3668.3,10.37836122]
[1718054710597,3.44658,3669.0,3668.4,0.07111966]
[1718054710758,3.44658,3669.0,3668.4,1.27325935]
[1718054711407,3.44658,3669.0,3668.4,0.07111966]
[1718054725393,2.7257,3668.8,3668.4,0.07111966]
[1718054729424,2.72583,3668.7,3668.4,0.07111966]
[1718054745236,0.721,3669.1,3668.4,0.07111966]
[1718054745442,5.1176,3669.4,3668.4,0.07111966]
[1718054745443,0.721,3668.9,3668.4,0.07111966]
[1718054745667,0.721,3668.7,3668.4,0.07111966]
[1718054745807,2.7259,3668.6,3668.4,0.07111966]
[1718054769357,3.2026,3668.5,3668.4,0.07111966]
[1718054769971,2.72635,3668.0,3667.7,0.56736122]
[1718054770175,2.72635,3668.0,3667.6,8.00736122]
[1718054770376,2.72635,3668.0,3667.8,0.06067237]
[1718054770560,2.72635,3668.0,3667.6,0.56736122]
[1718054770759,2.72635,3668.0,3667.9,0.06067237]
[1718054770954,2.72635,3668.0,3667.6,0.56736122]
[1718054771271,2.72635,3668.0,3667.9,0.06067237]
[1718054771580,2.72635,3668.0,3667.5,3.05266122]
[1718054771877,2.72635,3668.0,3667.9,0.06067237]
[1718054772066,2.72635,3668.0,3667.5,3.82913866]
[1718054772243,2.72635,3668.0,3667.9,0.06067237]
[1718054772445,2.72635,3668.0,3667.5,3.82913866]
[1718054772646,2.72635,3668.0,3667.9,0.06067237]
[1718054772873,2.72635,3668.0,3667.5,3.82913866]
[1718054773070,2.72635,3668.0,3667.9,0.06067237]
[1718054773269,2.72635,3668.0,3667.5,3.05266122]
[1718054773270,2.72644,3667.8,3667.5,3.05266122]
[1718054773669,2.72644,3667.8,3667.5,2.4853]
[1718054776859,2.72644,3667.8,3667.3,3.0]
[1718054777062,2.72644,3667.8,3667.3,2.3475]
[1718054777266,2.72644,3667.8,3667.3,5.3475]
[1718054777854,2.72644,3667.8,3667.3,5.69639307]
[1718054780879,2.72644,3667.8,3667.3,2.69639307]
[1718054785596,2.72644,3667.8,3667.4,0.05926387]
[1718054790403,0.721,3668.0,3667.4,0.05926387]
[1718054792118,3.0394,3668.0,3667.4,0.05926387]
[1718054792795,0.721,3668.0,3667.4,0.05926387]
[1718054794110,2.72635,3667.9,3667.4,0.05926387]
[1718054795761,2.72635,3667.9,3667.4,0.82569629]
[1718054796832,2.72635,3667.9,3667.5,2.2965]
[1718054797169,2.72616,3668.2,3667.6,0.05928834]
[1718054798384,0.721,3668.1,3667.6,0.05928834]
[1718054802720,3.0429,3668.1,3667.6,0.05928834]
[1718054802893,2.72628,3668.0,3667.6,0.05928834]
[1718054803089,2.72628,3668.0,3667.4,1.33379364]
[1718054803311,2.72628,3668.0,3667.5,0.05913537]
[1718054804297,2.72628,3668.0,3667.5,0.47110927]
[1718054804906,2.72628,3668.0,3667.5,2.73000927]
[1718054810200,2.72628,3668.0,3667.5,3.29737049]
[1718054811118,2.72628,3668.0,3667.5,0.62649659]
[1718054811637,2.72628,3668.0,3667.5,0.05913537]
[1718054811939,2.72642,3667.9,3667.5,0.05913537]
[1718054812437,2.72642,3667.9,3667.5,0.62649659]
[1718054815231,2.72642,3667.9,3667.6,0.56736122]
[1718054815539,2.72642,3667.9,3667.7,0.05920881]
[1718054816104,2.72642,3667.9,3667.5,0.56736122]
[1718054816304,2.72642,3667.9,3667.6,0.05920881]
[1718054819343,2.72649,3667.8,3667.6,0.05920881]
[1718054823716,2.72661,3667.6,3667.4,0.56736122]
[1718054823918,2.72661,3667.6,3667.5,0.05920267]
[1718054824251,2.72661,3667.6,3667.3,0.56736122]
[1718054824850,2.72661,3667.6,3667.4,0.05920267]
[1718054826583,2.72661,3667.6,3667.3,0.56736122]
[1718054826756,2.72661,3667.6,3667.4,0.05922103]
[1718054829783,2.72661,3667.6,3667.2,0.56736122]
[1718054830002,2.72661,3667.6,3667.3,0.05920267]
[1718054830446,2.72661,3667.6,3667.2,0.56736122]
[1718054830648,2.72661,3667.6,3667.4,0.05920267]
[1718054830875,2.72661,3667.6,3667.2,0.56736122]
[1718054831080,2.72661,3667.6,3667.1,3.577846]
[1718054831081,5.15931,3667.6,3667.5,0.05920267]
[1718054831284,5.15931,3667.6,3667.2,0.56736122]
[1718054831479,5.15931,3667.6,3667.5,0.05916596]
[1718054831991,5.15931,3667.6,3667.2,0.56736122]
[1718054832155,5.15931,3667.6,3667.3,0.05919043]
[1718054832358,5.15931,3667.6,3667.1,0.56736122]
[1718054832585,5.15931,3667.6,3667.2,0.05919043]
[1718054833625,2.72673,3667.4,3667.2,0.05919043]
[1718054834304,2.72673,3667.4,3667.0,0.56736122]
[1718054834531,2.72673,3667.4,3667.3,0.05919043]
[1718054834967,2.72673,3667.4,3667.0,0.56736122]
[1718054835298,2.72673,3667.4,3667.1,0.05952092]
[1718054836588,2.72673,3667.4,3666.9,3.29445122]
[1718054836763,2.72673,3667.4,3667.0,0.05953928]
[1718054843318,2.72673,3667.4,3667.0,2.41533928]
[1718054843619,2.72673,3667.4,3667.0,3.07140993]
[1718054845108,2.72686,3667.3,3667.0,0.05953928]
[1718054845797,2.72686,3667.3,3666.7,5.09974]
[1718054845987,2.72686,3667.3,3666.8,0.05952092]
[1718054846188,2.72686,3667.3,3666.7,2.3725]
[1718054846387,2.72686,3667.3,3666.8,0.05961273]
[1718054846807,2.72686,3667.3,3666.7,2.3725]
[1718054847022,2.72686,3667.3,3666.8,0.05970453]
[1718054847220,2.72694,3667.2,3666.7,2.3725]
[1718054847421,2.72694,3667.2,3666.9,0.0597535]
[1718054847723,2.72694,3667.2,3666.7,3.09641672]
[1718054847918,2.72694,3667.2,3667.0,0.0597535]
[1718054848082,2.72694,3667.2,3666.7,3.09641672]
[1718054848286,2.72694,3667.2,3667.1,0.0597535]
[1718054848503,2.72694,3667.2,3666.7,3.09641672]
[1718054848700,2.72694,3667.2,3667.1,0.05974738]
[1718054849189,2.72694,3667.2,3666.7,2.3725]
[1718054849725,2.72694,3667.2,3666.8,0.05974738]
[1718054850113,2.72694,3667.2,3666.7,2.3725]
[1718054850327,2.72694,3667.2,3666.9,0.05974738]
[1718054850622,2.72694,3667.2,3666.7,2.3725]
[1718054850623,2.72694,3667.2,3667.0,0.05974738]
[1718054851227,2.72694,3667.2,3667.1,0.05974738]
[1718054851594,2.72694,3667.2,3666.7,2.3725]
[1718054851933,2.72694,3667.2,3666.8,0.7836641]
[1718054856154,2.72694,3667.2,3666.8,0.05974738]
[1718054856665,2.72694,3667.2,3666.9,0.05974738]
[1718054857033,2.72694,3667.2,3666.5,4.01575122]
[1718054857235,2.72694,3667.2,3666.6,0.6271086]
[1718054862233,2.72701,3667.1,3666.6,0.6271086]
[1718054862434,5.04721,3667.1,3666.7,0.60884787]
[1718054862633,5.04721,3667.1,3666.8,0.05982085]
[1718054862834,5.04721,3667.1,3666.7,0.60884787]
[1718054863030,5.04721,3667.1,3666.8,0.05982085]
[1718054863233,5.04721,3667.1,3666.5,3.29475122]
[1718054863472,5.04721,3667.1,3666.6,0.77996757]
[1718054864176,2.72709,3667.0,3666.6,0.77996757]
[1718054865677,2.72709,3667.0,3666.6,1.34732879]
[1718054867673,2.72709,3667.0,3666.6,0.77996757]
[1718054868344,2.72709,3667.0,3666.6,1.34732879]
[1718054874196,2.72709,3667.0,3666.7,0.56736122]
[1718054874568,2.72709,3667.0,3666.8,0.05984468]
[1718054874965,2.72709,3667.0,3666.7,0.56736122]
[1718054875466,2.72709,3667.0,3666.8,0.05984468]
[1718054875996,2.72709,3667.0,3666.7,0.56736122]
[1718054876176,2.72709,3667.0,3666.9,0.05984468]
[1718054876378,2.72709,3667.0,3666.7,0.56736122]
[1718054876567,2.72709,3667.0,3666.9,0.05984468]
[1718054876767,2.72709,3667.0,3666.7,0.56736122]
[1718054876989,2.72709,3667.0,3666.9,0.05984468]
[1718054877360,2.72709,3667.0,3666.7,0.56736122]
[1718054877564,2.72709,3667.0,3666.9,0.05984468]
[1718054877796,2.72709,3667.0,3666.7,0.56736122]
[1718054877988,2.72709,3667.0,3666.9,0.05984468]
[1718054878185,2.72709,3667.0,3666.6,0.56736122]
[1718054878390,2.72709,3667.0,3666.9,0.05984468]
[1718054878594,2.72709,3667.0,3666.7,0.56736122]
[1718054878800,2.72709,3667.0,3666.9,0.05984468]
[1718054879281,2.72709,3667.0,3666.7,0.56736122]
[1718054879482,2.72709,3667.0,3666.9,0.05984468]
[1718054879790,2.72709,3667.0,3666.7,0.56736122]
[1718054880171,2.72709,3667.0,3666.8,0.05985078]
[1718054880494,2.72709,3667.0,3666.7,0.56736122]
[1718054880694,2.72709,3667.0,3666.9,0.05985078]
[1718054880999,2.72709,3667.0,3666.7,0.56736122]
[1718054881307,2.72686,3667.3,3666.9,0.05985078]
[1718054881478,2.72686,3667.3,3666.7,0.56736122]
[1718054881820,2.72686,3667.3,3667.0,0.05985078]
[1718054882035,2.72686,3667.3,3666.8,0.56736122]
[1718054882602,2.72686,3667.3,3666.9,0.05985078]
[1718054883002,2.72686,3667.3,3666.8,0.56736122]
[1718054883206,2.72686,3667.3,3667.0,0.05985078]
[1718054883406,2.72686,3667.3,3666.8,0.56736122]
[1718054883609,2.72686,3667.3,3667.1,0.05985078]
[1718054883923,2.72686,3667.3,3667.2,0.05985078]
[1718054884078,2.72686,3667.3,3666.8,0.56736122]
[1718054884278,2.72686,3667.3,3667.2,0.05985078]
[1718054884497,2.72686,3667.3,3666.8,0.56736122]
[1718054884777,2.72686,3667.3,3667.2,0.05985078]
[1718054885287,2.72686,3667.3,3666.8,0.56736122]
[1718054885488,2.72686,3667.3,3667.2,0.05985078]
[1718054885684,2.72686,3667.3,3666.7,0.56736122]
[1718054885879,2.72686,3667.3,3667.2,0.05985078]
[1718054886098,2.72686,3667.3,3666.8,0.56736122]
[1718054886298,2.72686,3667.3,3667.2,0.05985078]
[1718054886498,2.72686,3667.3,3666.8,0.56736122]
[1718054886801,2.72686,3667.3,3667.2,0.05985078]
[1718054886996,2.72686,3667.3,3666.8,0.56736122]
[1718054887197,2.72686,3667.3,3667.2,0.05985078]
[1718054887434,3.310636,3667.3,3666.8,0.56736122]
[1718054887610,2.72696,3667.1,3666.8,0.56736122]
[1718054888532,2.72696,3667.1,3666.7,0.56736122]
[1718054889292,2.72696,3667.1,3666.8,0.56736122]
[1718054890528,2.72696,3667.1,3666.9,0.05985078]
[1718054890731,2.72696,3667.1,3666.8,0.56736122]
[1718054890911,2.72696,3667.1,3667.0,0.05985078]
[1718054891118,2.72696,3667.1,3666.7,0.56736122]
[1718054891297,2.72696,3667.1,3667.0,0.05985692]
[1718054891493,2.72696,3667.1,3666.7,0.56736122]
[1718054891699,2.72696,3667.1,3667.0,0.05985692]
[1718054892009,2.72696,3667.1,3666.7,0.56736122]
[1718054892737,2.72696,3667.1,3666.8,0.05985692]
[1718054892912,2.72696,3667.1,3666.8,0.56736122]
[1718054893109,2.72696,3667.1,3666.9,0.05985692]
[1718054893410,2.72696,3667.1,3666.8,0.56736122]
[1718054893611,2.72696,3667.1,3667.0,0.05985692]
[1718054893807,2.72696,3667.1,3666.8,0.56736122]
[1718054894040,2.72696,3667.1,3667.0,0.05985692]
[1718054894533,2.72696,3667.1,3666.7,0.56736122]
[1718054894733,2.72696,3667.1,3667.0,0.05985692]
[1718054894928,2.72696,3667.1,3666.7,0.56736122]
[1718054895106,2.72696,3667.1,3667.0,0.05985692]
[1718054895456,2.72696,3667.1,3666.7,0.56736122]
[1718054895596,2.72696,3667.1,3667.0,0.05985692]
[1718054895801,2.72696,3667.1,3666.7,0.56736122]
[1718054896304,2.72696,3667.1,3666.8,0.05985692]
[1718054896622,2.72696,3667.1,3666.8,0.56736122]
[1718054896824,2.72696,3667.1,3666.9,0.05985692]
[1718054897330,2.72696,3667.1,3666.8,0.56736122]
[1718054897537,2.72696,3667.1,3667.0,0.05985692]
[1718054897736,2.72696,3667.1,3666.8,0.56736122]
[1718054898045,2.72696,3667.1,3667.0,0.05985692]
[1718054898240,2.72696,3667.1,3666.8,0.56736122]
[1718054898741,2.72696,3667.1,3666.9,0.05985692]
[1718054899045,0.721,3667.0,3666.9,0.05985692]
[1718054899335,2.72709,3666.9,3666.7,0.56736122]
[1718054899513,2.72726,3666.7,3666.4,0.56736122]
[1718054899907,2.72726,3666.7,3666.5,0.56736122]
[1718054900108,2.72726,3666.7,3666.4,0.56736122]
[1718054900109,2.72739,3666.5,3666.4,0.56736122]
[1718054900334,3.44839,3666.5,3666.3,0.56736122]
[1718054900632,2.72757,3666.3,3666.1,0.56736122]
[1718054900804,2.72757,3666.3,3666.0,0.56736122]
[1718054901417,2.72757,3666.3,3665.9,0.56736122]
[1718054901651,3.44857,3666.3,3665.9,0.56736122]
[1718054901857,3.44857,3666.3,3665.8,8.00736122]
[1718054902338,3.44857,3666.3,3665.8,7.44]
[1718054902749,2.72757,3666.3,3665.8,7.44]
[1718054904535,3.308227,3666.3,3665.7,0.56736122]
[1718054904858,2.72757,3666.3,3665.7,0.56736122]
[1718054905655,2.72757,3666.3,3665.8,0.05596017]
[1718054905824,2.72757,3666.3,3665.7,0.56736122]
[1718054906160,2.72757,3666.3,3665.8,0.05596017]
[1718054906537,2.72757,3666.3,3665.6,3.29540122]
[1718054906728,2.72757,3666.3,3665.9,0.05596017]
[1718054906935,2.72757,3666.3,3665.6,3.29540122]
[1718054907156,2.72757,3666.3,3666.0,0.05596017]
[1718054907334,3.308227,3666.3,3665.6,3.29540122]
[1718054907524,2.72757,3666.3,3666.1,0.05596017]
[1718054907717,2.72757,3666.3,3665.6,3.29540122]
[1718054907922,2.72757,3666.3,3666.2,0.05596017]
[1718054908565,2.72757,3666.3,3665.6,2.72804]
[1718054908767,2.72757,3666.3,3666.2,0.05596017]
[1718054908975,2.72757,3666.3,3665.6,2.72804]
[1718054909258,2.72757,3666.3,3666.2,0.05596017]
[1718054909634,2.72757,3666.3,3665.6,2.72804]
[1718054910158,2.72757,3666.3,3665.7,0.05664601]
[1718054911245,3.308227,3666.3,3665.7,0.05664601]
[1718054911650,2.7277,3666.1,3665.7,0.05664601]
[1718054916444,0.721,3666.2,3665.7,0.05664601]
[1718054916445,2.72784,3665.9,3665.7,0.05664601]
[1718054919276,2.72784,3665.9,3665.8,0.05737473]
[1718054919489,2.72784,3665.9,3665.4,2.2947]
[1718054919790,3.44863,3666.2,3665.5,0.05737473]
[1718054922565,3.44863,3666.2,3665.5,2.78546473]
[1718054939255,2.4347,3666.1,3665.5,2.78546473]
[1718054939456,4.036963,3666.2,3665.5,2.78546473]
[1718054939457,0.721,3665.7,3665.5,0.05737473]
[1718054939748,0.721,3665.7,3665.2,10.16833]
[1718054939950,0.721,3665.7,3665.6,0.057485]
[1718054940120,0.721,3665.7,3665.2,2.72833]
[1718054940320,0.721,3665.7,3665.3,0.057485]
[1718054940552,2.72793,3665.8,3665.3,0.057485]
[1718054941359,2.7281,3665.6,3665.3,0.057485]
[1718054941538,3.4491,3665.6,3665.3,0.057485]
[1718054941728,3.4491,3665.6,3664.9,5.65887122]
[1718054942057,3.4491,3665.6,3665.4,0.05776069]
[1718054942221,3.4491,3665.6,3664.9,5.09151]
[1718054942423,3.44921,3665.4,3664.9,2.363]
[1718054943039,3.44921,3665.4,3664.7,0.56736122]
[1718054943452,3.44921,3665.4,3664.8,0.56736122]
[1718054944227,3.44921,3665.4,3664.7,0.56736122]
[1718054944426,3.44921,3665.4,3664.8,0.56736122]
[1718054948352,3.44921,3665.4,3664.7,0.56736122]
[1718054950246,2.72821,3665.4,3664.8,2.72865]
[1718054950446,3.44921,3665.4,3664.8,2.72865]
[1718054950666,3.44921,3665.4,3664.9,0.05238826]
[1718054953861,0.721,3665.2,3664.9,0.05238826]
[1718054954279,3.44921,3665.4,3664.9,0.05238826]